[Event "December 5 Early 2023"]
[Site "https://www.chess.com"]
[Date "2023.12.05"]
[Round "10"]
[White "Shinkarev, M"]
[Black "Dyulgerov, Volen"]
[Result "1-0"]
[Board "131"]
[TimeControl "180+1"]
[WhiteFideId "4145348"]
[BlackFideId "2918978"]
[WhiteElo "2474"]
[BlackElo "2253"]
[WhiteTeam "RUS"]
[BlackTeam "BUL"]
[WhiteClock "0:01:38"]
[BlackClock "0:00:00"]

1. c4 {[%clk 0:03:00]}  b5 {[%clk 0:02:59]} 2. cxb5 {[%clk 0:02:56]}  a6 {[%clk 0:02:59]} 3. Nc3 {[%clk 0:02:54]}  axb5 {[%clk 0:02:58]} 4. Nxb5 {[%clk 0:02:54]}  Nf6 {[%clk 0:02:57]} 5. d4 {[%clk 0:02:53]}  Ra5 {[%clk 0:02:46]} 6. e3 {[%clk 0:02:48]}  Bb7 {[%clk 0:02:43]} 7. Nf3 {[%clk 0:02:47]}  Ne4 {[%clk 0:02:40]} 8. b4 {[%clk 0:02:39]}  Rxb5 {[%clk 0:02:23]} 9. Bxb5 {[%clk 0:02:38]}  Nc3 {[%clk 0:02:23]} 10. Qd3 {[%clk 0:02:36]}  Nxb5 {[%clk 0:02:20]} 11. Qxb5 {[%clk 0:02:37]}  Ba6 {[%clk 0:02:21]} 12. Qa5 {[%clk 0:02:28]}  Bc4 {[%clk 0:01:55]} 13. Ne5 {[%clk 0:02:25]}  Nc6 {[%clk 0:01:55]} 14. Nxc6 {[%clk 0:02:19]}  dxc6 {[%clk 0:01:55]} 15. f3 {[%clk 0:02:16]}  e6 {[%clk 0:01:50]} 16. Kf2 {[%clk 0:02:13]}  Bd6 {[%clk 0:01:32]} 17. Bd2 {[%clk 0:02:11]}  h5 {[%clk 0:00:40]} 18. e4 {[%clk 0:02:06]}  Bxh2 {[%clk 0:00:10]} 19. Rxh2 {[%clk 0:01:53]}  Qxd4+ {[%clk 0:00:10]} 20. Be3 {[%clk 0:01:53]}  Qb2+ {[%clk 0:00:09]} 21. Kg3 {[%clk 0:01:50]}  h4+ {[%clk 0:00:05]} 22. Kh3 {[%clk 0:01:40]}  Qe5 {[%clk 0:00:00]} 23. Qxe5 {[%clk 0:01:38]} 1-0

[Event "December 5 Early 2023"]
[Site "https://www.chess.com"]
[Date "2023.12.05"]
[Round "10"]
[White "Player, Edmund C"]
[Black "Lopusiewicz, Piotr"]
[Result "1-0"]
[Board "133"]
[TimeControl "180+1"]
[WhiteFideId "406520"]
[BlackFideId "1116029"]
[WhiteElo "2237"]
[BlackElo "2421"]
[WhiteTeam "ENG"]
[BlackTeam "POL"]
[WhiteClock "0:00:04"]
[BlackClock "0:00:13"]

1. d4 {[%clk 0:02:54]}  Nf6 {[%clk 0:02:59]} 2. Nc3 {[%clk 0:02:54]}  d5 {[%clk 0:02:59]} 3. Bg5 {[%clk 0:02:54]}  c5 {[%clk 0:02:56]} 4. Bxf6 {[%clk 0:02:50]}  exf6 {[%clk 0:02:55]} 5. dxc5 {[%clk 0:02:50]}  Be6 {[%clk 0:02:55]} 6. Nf3 {[%clk 0:02:47]}  Bxc5 {[%clk 0:02:55]} 7. e3 {[%clk 0:02:43]}  Nc6 {[%clk 0:02:42]} 8. Bd3 {[%clk 0:02:33]}  Bb4 {[%clk 0:02:38]} 9. Qd2 {[%clk 0:02:30]}  Qa5 {[%clk 0:02:37]} 10. Nd4 {[%clk 0:02:10]}  Nxd4 {[%clk 0:02:34]} 11. exd4 {[%clk 0:02:11]}  O-O {[%clk 0:02:29]} 12. a3 {[%clk 0:02:07]}  Rac8 {[%clk 0:02:26]} 13. O-O {[%clk 0:01:58]}  Bxc3 {[%clk 0:02:27]} 14. bxc3 {[%clk 0:01:58]}  Qxc3 {[%clk 0:02:27]} 15. Qe3 {[%clk 0:01:55]}  Rfe8 {[%clk 0:02:26]} 16. Rab1 {[%clk 0:01:54]}  b6 {[%clk 0:02:21]} 17. Qf4 {[%clk 0:01:31]}  Qxa3 {[%clk 0:02:09]} 18. Ra1 {[%clk 0:01:30]}  Qe7 {[%clk 0:02:08]} 19. h4 {[%clk 0:01:21]}  Qc7 {[%clk 0:02:05]} 20. Qf3 {[%clk 0:01:14]}  a5 {[%clk 0:01:52]} 21. Rfb1 {[%clk 0:00:54]}  Rb8 {[%clk 0:01:49]} 22. Qh5 {[%clk 0:00:50]}  g6 {[%clk 0:01:47]} 23. Qh6 {[%clk 0:00:47]}  Qd6 {[%clk 0:01:41]} 24. h5 {[%clk 0:00:37]}  Qf8 {[%clk 0:01:41]} 25. Qf4 {[%clk 0:00:35]}  Qe7 {[%clk 0:01:36]} 26. h6 {[%clk 0:00:32]}  f5 {[%clk 0:01:31]} 27. Rxa5 {[%clk 0:00:27]}  Qf6 {[%clk 0:01:04]} 28. Rab5 {[%clk 0:00:21]}  Bd7 {[%clk 0:01:01]} 29. Rxd5 {[%clk 0:00:20]}  Be6 {[%clk 0:00:47]} 30. Rd6 {[%clk 0:00:18]}  g5 {[%clk 0:00:46]} 31. Qg3 {[%clk 0:00:12]}  f4 {[%clk 0:00:44]} 32. Qh2 {[%clk 0:00:09]}  Red8 {[%clk 0:00:28]} 33. Rxd8+ {[%clk 0:00:04]}  Rxd8 {[%clk 0:00:22]} 34. c3 {[%clk 0:00:04]}  Bf5 {[%clk 0:00:17]} 35. Bxf5 {[%clk 0:00:02]}  Qxf5 {[%clk 0:00:17]} 36. Qh5 {[%clk 0:00:02]}  Qxb1+ {[%clk 0:00:17]} 37. Kh2 {[%clk 0:00:02]}  Qg6 {[%clk 0:00:17]} 38. Qg4 {[%clk 0:00:03]}  Qxh6+ {[%clk 0:00:18]} 39. Kg1 {[%clk 0:00:03]}  Qe6 {[%clk 0:00:18]} 40. Qxg5+ {[%clk 0:00:03]}  Qg6 {[%clk 0:00:17]} 41. Qxd8+ {[%clk 0:00:03]}  Kg7 {[%clk 0:00:18]} 42. Qc7 {[%clk 0:00:02]}  Qb1+ {[%clk 0:00:17]} 43. Kh2 {[%clk 0:00:02]}  Qg6 {[%clk 0:00:18]} 44. Qe5+ {[%clk 0:00:02]}  f6 {[%clk 0:00:18]} 45. Qxf4 {[%clk 0:00:02]}  Qh5+ {[%clk 0:00:18]} 46. Kg3 {[%clk 0:00:02]}  Qd5 {[%clk 0:00:18]} 47. Qg4+ {[%clk 0:00:02]}  Kf7 {[%clk 0:00:18]} 48. Qf4 {[%clk 0:00:01]}  Qc4 {[%clk 0:00:18]} 49. Qe3 {[%clk 0:00:02]}  b5 {[%clk 0:00:18]} 50. Kf3 {[%clk 0:00:02]}  Qc6+ {[%clk 0:00:18]} 51. Qe4 {[%clk 0:00:03]}  Qxc3+ {[%clk 0:00:18]} 52. Qe3 {[%clk 0:00:03]}  Qc4 {[%clk 0:00:17]} 53. d5 {[%clk 0:00:03]}  Qxd5+ {[%clk 0:00:17]} 54. Kg3 {[%clk 0:00:04]}  Qc4 {[%clk 0:00:16]} 55. Qh6 {[%clk 0:00:04]}  Qc7+ {[%clk 0:00:16]} 56. f4 {[%clk 0:00:03]}  Ke6 {[%clk 0:00:15]} 57. Qh3+ {[%clk 0:00:03]}  Kd5 {[%clk 0:00:14]} 58. Qf5+ {[%clk 0:00:03]}  Kc4 {[%clk 0:00:14]} 59. Qc2+ {[%clk 0:00:03]}  Kd4 {[%clk 0:00:15]} 60. Qxc7 {[%clk 0:00:04]}  b4 {[%clk 0:00:16]} 61. Qb6+ {[%clk 0:00:04]}  Kc3 {[%clk 0:00:13]} 62. Qxf6+ {[%clk 0:00:04]} 1-0

[Event "December 5 Early 2023"]
[Site "https://www.chess.com"]
[Date "2023.12.05"]
[Round "10"]
[White "Mayaud, Raphael"]
[Black "Chemin, Justo Reinaldo"]
[Result "1-0"]
[Board "134"]
[TimeControl "180+1"]
[WhiteFideId "627151"]
[BlackFideId "2101580"]
[WhiteElo "2409"]
[BlackElo "2226"]
[WhiteTeam "FRA"]
[BlackTeam "BRA"]
[WhiteClock "0:00:04"]
[BlackClock "0:00:00"]

1. d4 {[%clk 0:02:58]}  e6 {[%clk 0:02:59]} 2. Nf3 {[%clk 0:02:57]}  d5 {[%clk 0:02:59]} 3. c4 {[%clk 0:02:57]}  c6 {[%clk 0:02:59]} 4. Nbd2 {[%clk 0:02:52]}  Nf6 {[%clk 0:02:56]} 5. g3 {[%clk 0:02:51]}  Nbd7 {[%clk 0:02:56]} 6. Bg2 {[%clk 0:02:52]}  Bd6 {[%clk 0:02:46]} 7. O-O {[%clk 0:02:51]}  O-O {[%clk 0:02:46]} 8. Qc2 {[%clk 0:02:52]}  Qe7 {[%clk 0:02:45]} 9. e4 {[%clk 0:02:51]}  dxe4 {[%clk 0:02:37]} 10. Nxe4 {[%clk 0:02:49]}  Nxe4 {[%clk 0:02:37]} 11. Qxe4 {[%clk 0:02:49]}  c5 {[%clk 0:02:32]} 12. Rd1 {[%clk 0:02:45]}  cxd4 {[%clk 0:02:29]} 13. Nxd4 {[%clk 0:02:46]}  Bc5 {[%clk 0:02:25]} 14. Nb3 {[%clk 0:02:36]}  Nf6 {[%clk 0:02:18]} 15. Qc2 {[%clk 0:02:27]}  Ng4 {[%clk 0:02:07]} 16. Nxc5 {[%clk 0:02:18]}  Qxc5 {[%clk 0:02:07]} 17. h3 {[%clk 0:02:17]}  Ne5 {[%clk 0:01:59]} 18. b3 {[%clk 0:02:17]}  Ng6 {[%clk 0:01:54]} 19. Be3 {[%clk 0:02:10]}  Qc7 {[%clk 0:01:53]} 20. Rd2 {[%clk 0:02:04]}  e5 {[%clk 0:01:52]} 21. Rad1 {[%clk 0:02:04]}  Be6 {[%clk 0:01:52]} 22. Qb2 {[%clk 0:01:52]}  a5 {[%clk 0:01:40]} 23. Rd6 {[%clk 0:01:51]}  a4 {[%clk 0:01:34]} 24. Rb6 {[%clk 0:01:45]}  axb3 {[%clk 0:01:26]} 25. axb3 {[%clk 0:01:44]}  Rab8 {[%clk 0:01:25]} 26. Qc2 {[%clk 0:01:14]}  Rfc8 {[%clk 0:01:06]} 27. Qd2 {[%clk 0:00:50]}  Nf8 {[%clk 0:01:04]} 28. Qd6 {[%clk 0:00:44]}  Nd7 {[%clk 0:00:53]} 29. Qxc7 {[%clk 0:00:42]}  Rxc7 {[%clk 0:00:54]} 30. Rb5 {[%clk 0:00:42]}  f6 {[%clk 0:00:52]} 31. g4 {[%clk 0:00:39]}  Kf7 {[%clk 0:00:52]} 32. Ra1 {[%clk 0:00:37]}  b6 {[%clk 0:00:45]} 33. Ra6 {[%clk 0:00:34]}  h5 {[%clk 0:00:33]} 34. gxh5 {[%clk 0:00:32]}  f5 {[%clk 0:00:30]} 35. Bxb6 {[%clk 0:00:31]}  Nxb6 {[%clk 0:00:30]} 36. Raxb6 {[%clk 0:00:30]}  Rd8 {[%clk 0:00:24]} 37. Rb7 {[%clk 0:00:27]}  Rxb7 {[%clk 0:00:24]} 38. Rxb7+ {[%clk 0:00:28]}  Kf6 {[%clk 0:00:25]} 39. Rb6 {[%clk 0:00:20]}  e4 {[%clk 0:00:25]} 40. Kh2 {[%clk 0:00:19]}  Ke5 {[%clk 0:00:25]} 41. Rb5+ {[%clk 0:00:16]}  Kd4 {[%clk 0:00:21]} 42. Rb6 {[%clk 0:00:17]}  Re8 {[%clk 0:00:19]} 43. Kg3 {[%clk 0:00:16]}  Ke5 {[%clk 0:00:17]} 44. Rb5+ {[%clk 0:00:15]}  Kd4 {[%clk 0:00:18]} 45. Kf4 {[%clk 0:00:13]}  Kc3 {[%clk 0:00:16]} 46. Kg5 {[%clk 0:00:12]}  Kd3 {[%clk 0:00:13]} 47. Kf4 {[%clk 0:00:12]}  Kd4 {[%clk 0:00:13]} 48. Rb6 {[%clk 0:00:11]}  Bc8 {[%clk 0:00:12]} 49. h4 {[%clk 0:00:10]}  e3 {[%clk 0:00:11]} 50. fxe3+ {[%clk 0:00:08]}  Rxe3 {[%clk 0:00:12]} 51. Bd5 {[%clk 0:00:07]}  Rh3 {[%clk 0:00:10]} 52. Kg5 {[%clk 0:00:06]}  Rg3+ {[%clk 0:00:10]} 53. Kf4 {[%clk 0:00:07]}  Rg4+ {[%clk 0:00:10]} 54. Kf3 {[%clk 0:00:07]}  Rxh4 {[%clk 0:00:11]} 55. Rg6 {[%clk 0:00:07]}  Rxh5 {[%clk 0:00:10]} 56. Rxg7 {[%clk 0:00:07]}  Rh3+ {[%clk 0:00:10]} 57. Kf4 {[%clk 0:00:07]}  Kc3 {[%clk 0:00:10]} 58. Rg8 {[%clk 0:00:05]}  Rd3 {[%clk 0:00:10]} 59. Rxc8 {[%clk 0:00:05]}  Kd4 {[%clk 0:00:08]} 60. Kxf5 {[%clk 0:00:04]}  Rxb3 {[%clk 0:00:07]} 61. Ke6 {[%clk 0:00:04]}  Re3+ {[%clk 0:00:06]} 62. Kd6 {[%clk 0:00:05]}  Rg3 {[%clk 0:00:05]} 63. Re8 {[%clk 0:00:03]}  Rg6+ {[%clk 0:00:04]} 64. Re6 {[%clk 0:00:03]}  Rg1 {[%clk 0:00:05]} 65. c5 {[%clk 0:00:03]}  Rc1 {[%clk 0:00:04]} 66. Re4+ {[%clk 0:00:03]}  Kd3 {[%clk 0:00:00]} 67. c6 {[%clk 0:00:04]} 1-0

[Event "December 5 Early 2023"]
[Site "https://www.chess.com"]
[Date "2023.12.05"]
[Round "10"]
[White "BestestBP"]
[Black "Berezin, Viktor"]
[Result "1-0"]
[Board "137"]
[TimeControl "180+1"]
[BlackFideId "14107872"]
[WhiteElo "2080"]
[BlackElo "2404"]
[BlackTeam "UKR"]
[WhiteClock "0:00:14"]
[BlackClock "0:00:01"]

1. d4 {[%clk 0:03:00]}  Nf6 {[%clk 0:03:00]} 2. c4 {[%clk 0:02:59]}  g6 {[%clk 0:03:00]} 3. Nf3 {[%clk 0:02:59]}  Bg7 {[%clk 0:03:01]} 4. g3 {[%clk 0:02:56]}  O-O {[%clk 0:03:02]} 5. Bg2 {[%clk 0:02:55]}  d6 {[%clk 0:03:03]} 6. O-O {[%clk 0:02:55]}  Nc6 {[%clk 0:03:02]} 7. Nc3 {[%clk 0:02:54]}  a6 {[%clk 0:03:02]} 8. b3 {[%clk 0:02:53]}  Rb8 {[%clk 0:02:57]} 9. Bb2 {[%clk 0:02:50]}  b5 {[%clk 0:02:42]} 10. cxb5 {[%clk 0:02:51]}  axb5 {[%clk 0:02:41]} 11. Rc1 {[%clk 0:02:47]}  b4 {[%clk 0:02:06]} 12. Na4 {[%clk 0:02:46]}  Na7 {[%clk 0:02:07]} 13. d5 {[%clk 0:02:39]}  Bb7 {[%clk 0:01:54]} 14. Qc2 {[%clk 0:02:18]}  Nb5 {[%clk 0:01:52]} 15. e4 {[%clk 0:02:15]}  Rc8 {[%clk 0:01:35]} 16. Rfd1 {[%clk 0:02:12]}  c5 {[%clk 0:01:21]} 17. e5 {[%clk 0:02:01]}  Nxd5 {[%clk 0:01:14]} 18. exd6 {[%clk 0:01:57]}  Ndc3 {[%clk 0:01:08]} 19. Bxc3 {[%clk 0:01:49]}  Nxc3 {[%clk 0:01:05]} 20. Nxc3 {[%clk 0:01:49]}  Bxc3 {[%clk 0:01:04]} 21. dxe7 {[%clk 0:01:39]}  Qxe7 {[%clk 0:00:51]} 22. a4 {[%clk 0:01:39]}  Be4 {[%clk 0:00:49]} 23. Qe2 {[%clk 0:01:35]}  Rfe8 {[%clk 0:00:49]} 24. Qc4 {[%clk 0:01:34]}  Bf5 {[%clk 0:00:47]} 25. Nh4 {[%clk 0:01:15]}  Be6 {[%clk 0:00:41]} 26. Bd5 {[%clk 0:01:05]}  Bxd5 {[%clk 0:00:41]} 27. Rxd5 {[%clk 0:01:05]}  Rcd8 {[%clk 0:00:34]} 28. Rcd1 {[%clk 0:01:02]}  Rxd5 {[%clk 0:00:20]} 29. Qxd5 {[%clk 0:01:02]}  Qe2 {[%clk 0:00:20]} 30. Qd3 {[%clk 0:00:51]}  Qb2 {[%clk 0:00:18]} 31. Qb5 {[%clk 0:00:42]}  Re2 {[%clk 0:00:18]} 32. Qxc5 {[%clk 0:00:40]}  Kg7 {[%clk 0:00:13]} 33. Nf3 {[%clk 0:00:33]}  Qxb3 {[%clk 0:00:12]} 34. Rd8 {[%clk 0:00:28]}  Qb1+ {[%clk 0:00:05]} 35. Kg2 {[%clk 0:00:27]}  Qe4 {[%clk 0:00:04]} 36. Qf8+ {[%clk 0:00:24]}  Kf6 {[%clk 0:00:05]} 37. Qh8+ {[%clk 0:00:21]}  Kf5 {[%clk 0:00:04]} 38. Qxh7 {[%clk 0:00:17]}  Rc2 {[%clk 0:00:01]} 39. Qxf7+ {[%clk 0:00:16]}  Bf6 {[%clk 0:00:01]} 40. Rd5+ {[%clk 0:00:14]}  Kg4 {[%clk 0:00:01]} 41. h3# {[%clk 0:00:14]} 1-0

[Event "December 5 Early 2023"]
[Site "https://www.chess.com"]
[Date "2023.12.05"]
[Round "10"]
[White "Fernandez Hernandez, Gerardo"]
[Black "Korol, Dimitry"]
[Result "0-1"]
[Board "140"]
[TimeControl "180+1"]
[WhiteFideId "2207400"]
[BlackFideId "14108003"]
[WhiteElo "2219"]
[BlackElo "2286"]
[WhiteTeam "ESP"]
[BlackTeam "UKR"]
[WhiteClock "0:00:00"]
[BlackClock "0:00:04"]

1. e4 {[%clk 0:03:00]}  c5 {[%clk 0:03:00]} 2. d3 {[%clk 0:03:00]}  g6 {[%clk 0:02:59]} 3. g3 {[%clk 0:03:01]}  Bg7 {[%clk 0:02:59]} 4. Bg2 {[%clk 0:03:01]}  Nc6 {[%clk 0:03:00]} 5. f4 {[%clk 0:03:01]}  d6 {[%clk 0:03:00]} 6. Nf3 {[%clk 0:03:02]}  e5 {[%clk 0:03:01]} 7. O-O {[%clk 0:02:59]}  Nge7 {[%clk 0:03:01]} 8. f5 {[%clk 0:03:00]}  gxf5 {[%clk 0:02:59]} 9. Nh4 {[%clk 0:03:00]}  f4 {[%clk 0:02:58]} 10. Qh5 {[%clk 0:02:58]}  Nd4 {[%clk 0:02:36]} 11. Na3 {[%clk 0:02:53]}  Ng6 {[%clk 0:02:21]} 12. Nf5 {[%clk 0:02:42]}  Bf6 {[%clk 0:01:19]} 13. c3 {[%clk 0:02:08]}  Nxf5 {[%clk 0:01:12]} 14. exf5 {[%clk 0:02:09]}  Ne7 {[%clk 0:01:12]} 15. gxf4 {[%clk 0:01:07]}  Bxf5 {[%clk 0:01:11]} 16. Bxb7 {[%clk 0:01:02]}  Rg8+ {[%clk 0:01:05]} 17. Kh1 {[%clk 0:00:57]}  Rb8 {[%clk 0:00:56]} 18. Bc6+ {[%clk 0:00:45]}  Kf8 {[%clk 0:00:45]} 19. Be4 {[%clk 0:00:46]}  Qd7 {[%clk 0:00:25]} 20. Be3 {[%clk 0:00:21]}  Bg4 {[%clk 0:00:16]} 21. Qxh7 {[%clk 0:00:15]}  Bg7 {[%clk 0:00:11]} 22. Rg1 {[%clk 0:00:13]}  Rh8 {[%clk 0:00:10]} 23. Qxg7+ {[%clk 0:00:05]}  Kxg7 {[%clk 0:00:09]} 24. Rxg4+ {[%clk 0:00:04]}  Qxg4 {[%clk 0:00:09]} 25. Rg1 {[%clk 0:00:05]}  Qxg1+ {[%clk 0:00:08]} 26. Kxg1 {[%clk 0:00:05]}  Rxb2 {[%clk 0:00:08]} 27. Nc4 {[%clk 0:00:05]}  Rxa2 {[%clk 0:00:08]} 28. Nxd6 {[%clk 0:00:03]}  f5 {[%clk 0:00:06]} 29. Nxf5+ {[%clk 0:00:02]}  Kf6 {[%clk 0:00:06]} 30. fxe5+ {[%clk 0:00:02]}  Kxe5 {[%clk 0:00:05]} 31. Nxe7 {[%clk 0:00:00]}  Rb8 {[%clk 0:00:04]} 0-1

[Event "December 5 Early 2023"]
[Site "https://www.chess.com"]
[Date "2023.12.05"]
[Round "10"]
[White "Chirivi C, Jenny Astrid"]
[Black "Mende, Andreas"]
[Result "1-0"]
[Board "142"]
[TimeControl "180+1"]
[WhiteFideId "4403061"]
[BlackFideId "4631102"]
[WhiteElo "2255"]
[BlackElo "2096"]
[WhiteTeam "COL"]
[BlackTeam "GER"]
[WhiteClock "0:00:25"]
[BlackClock "0:00:00"]

1. d4 {[%clk 0:02:58]}  Nf6 {[%clk 0:02:58]} 2. c4 {[%clk 0:02:58]}  g6 {[%clk 0:02:58]} 3. Nc3 {[%clk 0:02:57]}  d5 {[%clk 0:02:58]} 4. Nf3 {[%clk 0:02:55]}  Bg7 {[%clk 0:02:58]} 5. Qb3 {[%clk 0:02:54]}  dxc4 {[%clk 0:02:57]} 6. Qxc4 {[%clk 0:02:55]}  O-O {[%clk 0:02:57]} 7. e4 {[%clk 0:02:54]}  a6 {[%clk 0:02:57]} 8. e5 {[%clk 0:02:53]}  b5 {[%clk 0:02:52]} 9. Qb3 {[%clk 0:02:52]}  Nfd7 {[%clk 0:02:50]} 10. Qd5 {[%clk 0:02:29]}  Nb6 {[%clk 0:02:43]} 11. Qxd8 {[%clk 0:02:26]}  Rxd8 {[%clk 0:02:43]} 12. Ne4 {[%clk 0:02:22]}  Nc6 {[%clk 0:02:33]} 13. Be3 {[%clk 0:02:17]}  Bg4 {[%clk 0:02:22]} 14. O-O-O {[%clk 0:02:08]}  Bxf3 {[%clk 0:02:16]} 15. gxf3 {[%clk 0:02:07]}  Nd5 {[%clk 0:02:02]} 16. Be2 {[%clk 0:01:51]}  Ncb4 {[%clk 0:01:41]} 17. a3 {[%clk 0:01:40]}  Nxe3 {[%clk 0:01:41]} 18. fxe3 {[%clk 0:01:39]}  Nd5 {[%clk 0:01:41]} 19. Kd2 {[%clk 0:01:39]}  Bh6 {[%clk 0:01:17]} 20. f4 {[%clk 0:01:37]}  f5 {[%clk 0:01:02]} 21. Nc5 {[%clk 0:01:26]}  Kf7 {[%clk 0:01:01]} 22. Bf3 {[%clk 0:01:23]}  e6 {[%clk 0:01:00]} 23. h4 {[%clk 0:01:10]}  Ra7 {[%clk 0:00:56]} 24. Ke2 {[%clk 0:01:07]}  Nb6 {[%clk 0:00:43]} 25. b3 {[%clk 0:00:59]}  Nd7 {[%clk 0:00:39]} 26. Nd3 {[%clk 0:00:56]}  Bf8 {[%clk 0:00:29]} 27. b4 {[%clk 0:00:50]}  Nb6 {[%clk 0:00:28]} 28. h5 {[%clk 0:00:44]}  Nc4 {[%clk 0:00:09]} 29. hxg6+ {[%clk 0:00:44]}  hxg6 {[%clk 0:00:08]} 30. Rh7+ {[%clk 0:00:42]}  Bg7 {[%clk 0:00:08]} 31. Rg1 {[%clk 0:00:37]}  Rh8 {[%clk 0:00:05]} 32. Rxh8 {[%clk 0:00:34]}  Bxh8 {[%clk 0:00:04]} 33. Ra1 {[%clk 0:00:32]}  Bg7 {[%clk 0:00:03]} 34. e4 {[%clk 0:00:26]}  Bf8 {[%clk 0:00:00]} 35. d5 {[%clk 0:00:25]} 1-0

[Event "December 5 Early 2023"]
[Site "https://www.chess.com"]
[Date "2023.12.05"]
[Round "10"]
[White "Fakhretdinova, Margarita"]
[Black "Ghosh, Chanchal Kumer"]
[Result "0-1"]
[Board "146"]
[TimeControl "180+1"]
[WhiteFideId "24103667"]
[BlackFideId "10201858"]
[WhiteElo "2296"]
[BlackElo "2066"]
[WhiteTeam "RUS"]
[BlackTeam "BAN"]
[WhiteClock "0:00:30"]
[BlackClock "0:00:47"]

1. e4 {[%clk 0:03:00]}  c5 {[%clk 0:02:57]} 2. Nf3 {[%clk 0:03:00]}  d6 {[%clk 0:02:57]} 3. d4 {[%clk 0:03:01]}  cxd4 {[%clk 0:02:57]} 4. Nxd4 {[%clk 0:03:02]}  Nf6 {[%clk 0:02:58]} 5. Nc3 {[%clk 0:03:02]}  a6 {[%clk 0:02:58]} 6. f3 {[%clk 0:03:01]}  e5 {[%clk 0:02:58]} 7. Nb3 {[%clk 0:03:02]}  Be7 {[%clk 0:02:58]} 8. Be3 {[%clk 0:03:01]}  Be6 {[%clk 0:02:58]} 9. Qd2 {[%clk 0:03:02]}  O-O {[%clk 0:02:59]} 10. O-O-O {[%clk 0:03:02]}  Nbd7 {[%clk 0:02:59]} 11. Qf2 {[%clk 0:03:01]}  b5 {[%clk 0:02:59]} 12. g4 {[%clk 0:02:59]}  Rc8 {[%clk 0:02:59]} 13. g5 {[%clk 0:02:54]}  Nh5 {[%clk 0:02:59]} 14. Rg1 {[%clk 0:02:51]}  Nf4 {[%clk 0:02:31]} 15. h4 {[%clk 0:02:28]}  b4 {[%clk 0:02:08]} 16. Ne2 {[%clk 0:02:27]}  Nh5 {[%clk 0:01:54]} 17. Ng3 {[%clk 0:02:21]}  Nxg3 {[%clk 0:01:53]} 18. Rxg3 {[%clk 0:02:16]}  a5 {[%clk 0:01:52]} 19. Kb1 {[%clk 0:01:49]}  a4 {[%clk 0:01:48]} 20. Nc1 {[%clk 0:01:47]}  a3 {[%clk 0:01:19]} 21. b3 {[%clk 0:01:41]}  Qc7 {[%clk 0:01:16]} 22. h5 {[%clk 0:01:28]}  d5 {[%clk 0:00:58]} 23. exd5 {[%clk 0:01:21]}  Bf5 {[%clk 0:00:57]} 24. Bd3 {[%clk 0:01:21]}  Qc3 {[%clk 0:00:56]} 25. Bd4 {[%clk 0:00:45]}  exd4 {[%clk 0:00:55]} 26. Ne2 {[%clk 0:00:30]}  Qb2# {[%clk 0:00:47]} 0-1

[Event "December 5 Early 2023"]
[Site "https://www.chess.com"]
[Date "2023.12.05"]
[Round "10"]
[White "Sarkar, Justin"]
[Black "Subramanian, Anusha"]
[Result "1-0"]
[Board "147"]
[TimeControl "180+1"]
[WhiteFideId "2010011"]
[BlackFideId "477710"]
[WhiteElo "2281"]
[BlackElo "2041"]
[WhiteTeam "USA"]
[BlackTeam "ENG"]
[WhiteClock "0:00:47"]
[BlackClock "0:00:00"]

1. d4 {[%clk 0:02:33]}  Nf6 {[%clk 0:02:57]} 2. c4 {[%clk 0:02:32]}  e6 {[%clk 0:02:58]} 3. Nf3 {[%clk 0:02:31]}  d5 {[%clk 0:02:57]} 4. Nc3 {[%clk 0:02:30]}  Bb4 {[%clk 0:02:57]} 5. Bg5 {[%clk 0:02:27]}  dxc4 {[%clk 0:02:51]} 6. e4 {[%clk 0:02:25]}  h6 {[%clk 0:02:42]} 7. Bxf6 {[%clk 0:02:22]}  Qxf6 {[%clk 0:02:35]} 8. Bxc4 {[%clk 0:02:22]}  O-O {[%clk 0:02:34]} 9. O-O {[%clk 0:02:21]}  c5 {[%clk 0:02:29]} 10. e5 {[%clk 0:02:16]}  Qe7 {[%clk 0:02:24]} 11. Ne4 {[%clk 0:02:12]}  Nc6 {[%clk 0:02:19]} 12. a3 {[%clk 0:02:08]}  Ba5 {[%clk 0:02:06]} 13. dxc5 {[%clk 0:02:03]}  b6 {[%clk 0:01:54]} 14. b4 {[%clk 0:02:00]}  bxc5 {[%clk 0:01:29]} 15. bxa5 {[%clk 0:01:58]}  Nxa5 {[%clk 0:01:30]} 16. Be2 {[%clk 0:01:55]}  Bb7 {[%clk 0:01:24]} 17. Qc2 {[%clk 0:01:53]}  Rac8 {[%clk 0:01:19]} 18. Nd6 {[%clk 0:01:51]}  Rc7 {[%clk 0:01:13]} 19. Rab1 {[%clk 0:01:50]}  Bxf3 {[%clk 0:00:55]} 20. Bxf3 {[%clk 0:01:49]}  f6 {[%clk 0:00:55]} 21. Qc3 {[%clk 0:01:48]}  fxe5 {[%clk 0:00:51]} 22. Qxe5 {[%clk 0:01:34]}  Nc6 {[%clk 0:00:28]} 23. Bxc6 {[%clk 0:01:31]}  Rxc6 {[%clk 0:00:29]} 24. Ne4 {[%clk 0:01:30]}  Rf5 {[%clk 0:00:26]} 25. Qb8+ {[%clk 0:01:26]}  Rf8 {[%clk 0:00:20]} 26. Qg3 {[%clk 0:01:24]}  c4 {[%clk 0:00:17]} 27. Rfc1 {[%clk 0:01:19]}  Rfc8 {[%clk 0:00:13]} 28. Rc3 {[%clk 0:01:16]}  e5 {[%clk 0:00:09]} 29. h3 {[%clk 0:01:12]}  Qe6 {[%clk 0:00:08]} 30. Rd1 {[%clk 0:01:10]}  Qf5 {[%clk 0:00:07]} 31. Qe3 {[%clk 0:01:06]}  Rf8 {[%clk 0:00:04]} 32. Rd5 {[%clk 0:01:02]}  Re6 {[%clk 0:00:04]} 33. Rxc4 {[%clk 0:01:01]}  Qf7 {[%clk 0:00:02]} 34. Rcc5 {[%clk 0:00:58]}  Qb7 {[%clk 0:00:02]} 35. Rb5 {[%clk 0:00:56]}  Qc6 {[%clk 0:00:02]} 36. Qc5 {[%clk 0:00:51]}  Qe8 {[%clk 0:00:01]} 37. Rxe5 {[%clk 0:00:49]}  Qg6 {[%clk 0:00:01]} 38. Rxe6 {[%clk 0:00:48]}  Qxe6 {[%clk 0:00:02]} 39. Qd5 {[%clk 0:00:47]}  Qxd5 {[%clk 0:00:02]} 40. Rxd5 {[%clk 0:00:47]}  Re8 {[%clk 0:00:03]} 41. f3 {[%clk 0:00:46]}  Kh7 {[%clk 0:00:02]} 42. Rd7 {[%clk 0:00:46]}  a5 {[%clk 0:00:01]} 43. Nf6+ {[%clk 0:00:46]}  Kg6 {[%clk 0:00:01]} 44. Nxe8 {[%clk 0:00:46]}  Kf5 {[%clk 0:00:00]} 45. Rxg7 {[%clk 0:00:47]} 1-0